[Event "Balkan Youth Online-ch 2020"]
[Site "Online"]
[Date "2020.10.31"]
[Round "1.2"]
[White "Yordanov, Mario"]
[Black "Sava, Robert-Gabriel"]
[Result "0-1"]
[ECO "B82"]
[WhiteElo "1213"]
[BlackElo "1716"]
[Annotator "NA RC"]
[PlyCount "76"]
[EventDate "2020.10.31"]
[EventType "swiss"]
[SourceTitle "playchess.com"]
[Source "ChessBase"]
[SourceQuality "1"]
[TimeControl "5400+30"]

1. e4 {[%emt 1:08:31]} c5 {[%emt 1:07:11]} 2. Nf3 {[%emt 0:00:27]} d6 {[%emt 0:00:23]} 3. d4 {[%emt 0:00:24]} cxd4 {[%emt 0:00:22]} 4. Nxd4 {[%emt 0:00:24]} Nf6 {[%emt 0:00:22]} 5. Nc3 {[%emt 0:00:26]} Nc6 {[%emt 0:00:24]} 6. Be3 {[%emt 0:00:28]} e6 {[%emt 0:00:23]} 7. f4 {[%emt 0:00:36]} Be7 {[%emt 0:00:23]} 8. Bb5 {[%emt 0:00:25]} O-O {[%emt 0:00:24]} 9. Bxc6 {[%emt 0:00:44]} bxc6 {[%emt 0:00:23]} 10. Nxc6 {[%emt 0:00:29]} Qc7 {[%emt 0:00:22]} 11. Nxe7+ {[%emt 0:00:23]} Qxe7 {[%emt 0:00:23]} 12. O-O {[%emt 0:00:32]} Bb7 {[%emt 0:00:23]} 13. Qd3 {[%emt 0:00:39]} d5 {[%emt 0:00:56]} 14. e5 {[%emt 0:00:41]} Nd7 {[%emt 0:00:24]} 15. Qe2 {[%emt 0:00:55]} Nc5 {[%emt 0:00:54]} 16. Qg4 {[%emt 0:02:09]} Nd7 {[%emt 0:01:25]} 17. Qh5 {[%emt 0:01:33]} f5 {[%emt 0:03:04]} 18. Bf2 {[%emt 0:02:07]} Qb4 {[%emt 0:01:02]} 19. Ne2 {[%emt 0:02:57]} Ba6 {[%emt 0:00:40]} 20. b3 {[%emt 0:00:51]} Qd2 {[%emt 0:01:00]} 21. Rfe1 {[%emt 0:01:30]} Bxe2 {[%emt 0:01:22]} 22. Rxe2 {[%emt 0:01:03]} Qxf4 {[%emt 0:00:39]} 23. Rf1 {[%emt 0:01:34]} Qb4 {[%emt 0:01:53]} 24. Re3 {[%emt 0:00:47]} g6 {[%emt 0:02:20]} 25. Qh6 {[%emt 0:00:56]} Nc5 {[%emt 0:00:57]} 26. c3 {[%emt 0:01:28]} Qb5 {[%emt 0:00:31]} 27. Rh3 {[%emt 0:00:28]} Rf7 {[%emt 0:00:28]} 28. Re1 {[%emt 0:00:58]} Ne4 {[%emt 0:00:31]} 29. Rhe3 {[%emt 0:01:49]} Nxf2 {[%emt 0:01:00]} 30. Kxf2 {[%emt 0:00:27]} Qb6 {[%emt 0:00:23]} 31. h4 {[%emt 0:00:25]} f4 {[%emt 0:00:24]} 32. Kg1 {[%emt 0:00:54]} fxe3 {[%emt 0:00:23]} 33. h5 {[%emt 0:00:25]} e2+ {[%emt 0:00:51]} 34. Kh2 {[%emt 0:00:26]} Qf2 {[%emt 0:00:24]} 35. hxg6 {[%emt 0:00:39]} Qf4+ {[%emt 0:00:41]} 36. Qxf4 {[%emt 0:00:34]} Rxf4 {[%emt 0:00:23]} 37. gxh7+ {[%emt 0:00:31]} Kxh7 {[%emt 0:00:23]} 38. Rxe2 {[%emt 0:00:23]} Re4 {[%emt 0:00:21]} 0-1

[Event "Balkan Youth Online-ch 2020"]
[Site "Online"]
[Date "2020.10.31"]
[Round "1.3"]
[White "Sevig, Mert Can"]
[Black "Gkavardinas, Antonios"]
[Result "1-0"]
[ECO "B23"]
[WhiteElo "1472"]
[BlackElo "1606"]
[Annotator "NA RC"]
[PlyCount "111"]
[EventDate "2020.10.31"]
[EventType "swiss"]
[SourceTitle "playchess.com"]
[Source "ChessBase"]
[SourceQuality "1"]
[TimeControl "5400+30"]

1. e4 {[%emt 1:05:20]} c5 {[%emt 1:05:23]} 2. Nc3 {[%emt 0:00:22]} g6 {[%emt 0:00:22]} 3. f4 {[%emt 0:00:24]} Bg7 {[%emt 0:00:23]} 4. Nf3 {[%emt 0:00:22]} Nc6 {[%emt 0:00:22]} 5. Bb5 {[%emt 0:00:23]} Nd4 {[%emt 0:00:40]} 6. Nxd4 {[%emt 0:00:31]} cxd4 {[%emt 0:00:27]} 7. Ne2 {[%emt 0:00:22]} Qb6 {[%emt 0:00:47]} 8. Bc4 {[%emt 0:00:45]} e6 {[%emt 0:00:59]} 9. d3 {[%emt 0:00:34]} Ne7 {[%emt 0:00:36]} 10. Bb3 {[%emt 0:01:10]} O-O {[%emt 0:00:36]} 11. O-O {[%emt 0:00:25]} a5 {[%emt 0:00:44]} 12. a4 {[%emt 0:01:42]} f5 {[%emt 0:00:37]} 13. Ng3 {[%emt 0:07:04]} Kh8 {[%emt 0:01:31]} 14. Kh1 {[%emt 0:01:41]} d6 {[%emt 0:01:57]} 15. Qe1 {[%emt 0:04:23]} e5 {[%emt 0:01:21]} 16. Bd2 {[%emt 0:01:51]} Bd7 {[%emt 0:00:51]} 17. Qf2 {[%emt 0:02:23]} fxe4 {[%emt 0:01:19]} 18. Nxe4 {[%emt 0:03:28]} d5 {[%emt 0:01:16]} 19. Ng3 {[%emt 0:01:38]} exf4 {[%emt 0:01:09]} 20. Bxf4 {[%emt 0:02:22]} Rae8 {[%emt 0:03:22]} 21. Qd2 {[%emt 0:00:57]} Be6 {[%emt 0:00:50]} 22. Rae1 {[%emt 0:01:19]} Nf5 {[%emt 0:01:25]} 23. Nxf5 {[%emt 0:01:08]} Rxf5 {[%emt 0:00:26]} 24. Bh6 {[%emt 0:00:36]} Ref8 {[%emt 0:00:43]} 25. Kg1 {[%emt 0:00:53]} Qd6 {[%emt 0:00:47]} 26. Bxg7+ {[%emt 0:00:38]} Kxg7 {[%emt 0:00:23]} 27. Qe2 {[%emt 0:00:28]} Rxf1+ {[%emt 0:00:57]} 28. Rxf1 {[%emt 0:00:23]} Bf5 {[%emt 0:00:24]} 29. Qf3 {[%emt 0:00:41]} Rc8 {[%emt 0:01:20]} 30. g4 {[%emt 0:00:32]} Be6 {[%emt 0:01:01]} 31. Qf6+ {[%emt 0:00:27]} Kg8 {[%emt 0:00:22]} 32. Qxd4 {[%emt 0:00:33]} Qd7 {[%emt 0:00:54]} 33. h3 {[%emt 0:00:24]} Re8 {[%emt 0:00:50]} 34. Re1 {[%emt 0:00:29]} Qd6 {[%emt 0:01:59]} 35. Kg2 {[%emt 0:00:32]} h5 {[%emt 0:01:06]} 36. Rxe6 {[%emt 0:00:35]} Rxe6 {[%emt 0:00:56]} 37. Qxd5 {[%emt 0:00:22]} Qxd5+ {[%emt 0:01:57]} 38. Bxd5 {[%emt 0:00:22]} Kf7 {[%emt 0:00:22]} 39. Kf3 {[%emt 0:00:32]} h4 {[%emt 0:00:33]} 40. Kf4 {[%emt 0:00:36]} Kf6 {[%emt 0:00:27]} 41. Bxe6 {[%emt 0:00:23]} Kxe6 {[%emt 0:00:21]} 42. Kg5 {[%emt 0:00:30]} Kf7 {[%emt 0:00:36]} 43. d4 {[%emt 0:00:21]} Kg7 {[%emt 0:00:24]} 44. d5 {[%emt 0:00:21]} Kf7 {[%emt 0:00:21]} 45. c4 {[%emt 0:00:24]} Kg7 {[%emt 0:00:29]} 46. c5 {[%emt 0:00:25]} Kf7 {[%emt 0:00:22]} 47. b3 {[%emt 0:00:25]} Ke7 {[%emt 0:00:23]} 48. Kxg6 {[%emt 0:00:21]} Kd7 {[%emt 0:00:24]} 49. Kf7 {[%emt 0:00:24]} Kc7 {[%emt 0:00:24]} 50. Ke7 {[%emt 0:00:22]} b6 {[%emt 0:00:21]} 51. d6+ {[%emt 0:00:21]} Kb7 {[%emt 0:00:25]} 52. d7 {[%emt 0:00:22]} b5 {[%emt 0:00:21]} 53. d8=Q {[%emt 0:00:23]} b4 {[%emt 0:00:21]} 54. Kd6 {[%emt 0:00:32]} Ka7 {[%emt 0:00:25]} 55. Kc6 {[%emt 0:00:23]} Ka6 {[%emt 0:00:23]} 56. Qa8# {[%emt 0:00:22]} 1-0

[Event "Balkan Youth Online-ch 2020"]
[Site "Online"]
[Date "2020.10.31"]
[Round "1.6"]
[White "Stefanoski, Daniel"]
[Black "Palaiologou, Apostolos"]
[Result "1-0"]
[ECO "B95"]
[WhiteElo "1129"]
[BlackElo "1410"]
[Annotator "NA RC"]
[PlyCount "85"]
[EventDate "2020.10.31"]
[EventType "swiss"]
[SourceTitle "playchess.com"]
[Source "ChessBase"]
[SourceQuality "1"]
[TimeControl "5400+30"]

1. e4 {[%emt 1:08:03]} c5 {[%emt 1:05:23]} 2. Nf3 {[%emt 0:00:21]} d6 {[%emt 0:00:23]} 3. d4 {[%emt 0:00:22]} cxd4 {[%emt 0:00:23]} 4. Nxd4 {[%emt 0:00:21]} Nf6 {[%emt 0:00:27]} 5. Nc3 {[%emt 0:00:22]} a6 {[%emt 0:00:24]} 6. Bg5 {[%emt 0:00:23]} e6 {[%emt 0:00:26]} 7. Be2 {[%emt 0:00:22]} Be7 {[%emt 0:00:23]} 8. O-O {[%emt 0:00:42]} O-O {[%emt 0:00:26]} 9. Qd2 {[%emt 0:00:28]} Qc7 {[%emt 0:02:22]} 10. f4 {[%emt 0:03:58]} b5 {[%emt 0:04:47]} 11. Qe3 {[%emt 0:01:37]} Bb7 {[%emt 0:03:34]} 12. Bf3 {[%emt 0:03:46]} Nc6 {[%emt 0:02:36]} 13. Nce2 {[%emt 0:02:36]} Nxd4 {[%emt 0:01:43]} 14. Nxd4 {[%emt 0:00:26]} Qc5 {[%emt 0:02:22]} 15. Rad1 {[%emt 0:03:24]} Rac8 {[%emt 0:02:24]} 16. c3 {[%emt 0:00:48]} h6 {[%emt 0:01:35]} 17. Bh4 {[%emt 0:00:38]} Rc7 {[%emt 0:00:53]} 18. Bf2 {[%emt 0:01:36]} Qa7 {[%emt 0:01:33]} 19. Qe2 {[%emt 0:00:48]} Qa8 {[%emt 0:00:34]} 20. Rfe1 {[%emt 0:00:47]} Rd7 {[%emt 0:01:11]} 21. h3 {[%emt 0:01:51]} d5 {[%emt 0:01:01]} 22. e5 {[%emt 0:01:22]} Ne8 {[%emt 0:00:35]} 23. Kh2 {[%emt 0:00:47]} Nc7 {[%emt 0:00:31]} 24. Rg1 {[%emt 0:00:55]} Bc5 {[%emt 0:00:46]} 25. g4 {[%emt 0:01:22]} f6 {[%emt 0:00:51]} 26. f5 {[%emt 0:02:05]} fxe5 {[%emt 0:02:21]} 27. fxe6 {[%emt 0:01:05]} Rdd8 {[%emt 0:01:22]} 28. Nf5 {[%emt 0:00:27]} Nxe6 {[%emt 0:01:09]} 29. Qxe5 {[%emt 0:00:57]} Qb8 {[%emt 0:00:57]} 30. Qxb8 {[%emt 0:00:33]} Rxb8 {[%emt 0:00:26]} 31. Bxc5 {[%emt 0:00:26]} Nxc5 {[%emt 0:00:22]} 32. Bxd5+ {[%emt 0:00:27]} Bxd5 {[%emt 0:00:23]} 33. Rxd5 {[%emt 0:00:23]} Na4 {[%emt 0:00:26]} 34. Ne7+ {[%emt 0:00:30]} Kh7 {[%emt 0:00:27]} 35. g5 {[%emt 0:00:23]} Rf2+ {[%emt 0:00:27]} 36. Kh1 {[%emt 0:00:31]} Nxb2 {[%emt 0:01:00]} 37. gxh6 {[%emt 0:00:28]} gxh6 {[%emt 0:00:33]} 38. Rg6 {[%emt 0:00:36]} Rb7 {[%emt 0:00:45]} 39. Rh5 {[%emt 0:00:32]} Rf1+ {[%emt 0:00:44]} 40. Kg2 {[%emt 0:00:23]} Rf2+ {[%emt 0:00:27]} 41. Kxf2 {[%emt 0:00:49]} Nd3+ {[%emt 0:00:22]} 42. Kg1 {[%emt 0:00:22]} Rxe7 {[%emt 0:00:30]} 43. Rhxh6# {[%emt 0:00:23]} 1-0

[Event "Balkan Youth Online-ch 2020"]
[Site "Online"]
[Date "2020.10.31"]
[Round "1.13"]
[White "Mogirzan, Matei-Valeriu"]
[Black "Nikolovski, Kiril"]
[Result "1-0"]
[ECO "B02"]
[WhiteElo "1813"]
[BlackElo "1282"]
[Annotator "NA RC"]
[PlyCount "105"]
[EventDate "2020.10.31"]
[EventType "swiss"]
[SourceTitle "playchess.com"]
[Source "ChessBase"]
[SourceQuality "1"]
[TimeControl "5400+30"]

1. e4 {[%emt 1:05:20]} d5 {[%emt 1:05:22]} 2. exd5 {[%emt 0:00:23]} Nf6 {[%emt 0:00:23]} 3. d4 {[%emt 0:00:30]} Nxd5 {[%emt 0:00:23]} 4. Nc3 {[%emt 0:00:36]} Nxc3 {[%emt 0:00:31]} 5. bxc3 {[%emt 0:00:22]} Nc6 {[%emt 0:00:59]} 6. Nf3 {[%emt 0:00:58]} Bg4 {[%emt 0:00:24]} 7. d5 {[%emt 0:00:34]} Ne5 {[%emt 0:00:26]} 8. Nxe5 {[%emt 0:01:32]} Bxd1 {[%emt 0:00:34]} 9. Bb5+ {[%emt 0:00:28]} c6 $1 {[%emt 0:00:28]} 10. dxc6 {[%emt 0:00:45]} a6 {[%emt 0:04:12]} 11. c7+ $17 {[%emt 0:01:21]} (11. cxb7+ $11 axb5 12. Nc6) 11... axb5 {[%emt 0:00:23]} 12. cxd8=Q+ {[%emt 0:00:25]} Rxd8 {[%emt 0:00:22]} 13. O-O {[%emt 0:00:54]} f6 {[%emt 0:00:45]} 14. Nf3 {[%emt 0:01:56]} Bxc2 {[%emt 0:00:43]} 15. Nd4 {[%emt 0:00:32]} Bd3 {[%emt 0:00:22]} 16. Re1 {[%emt 0:00:29]} e5 {[%emt 0:00:36]} 17. a4 {[%emt 0:01:26]} (17. Ne6 $17 Rd7 18. Nxf8 Kxf8 19. Ba3+ Kf7 20. Bb4) 17... b4 {[%emt 0:00:38]} 18. Ne6 {[%emt 0:00:41]} Rd6 {[%emt 0:02:08]} 19. Nxf8 {[%emt 0:00:55]} Rxf8 {[%emt 0:01:04]} 20. cxb4 {[%emt 0:00:24]} Rd4 {[%emt 0:00:42]} 21. Be3 {[%emt 0:00:27]} Rd7 {[%emt 0:00:51]} 22. Bc5 {[%emt 0:01:06]} Rff7 {[%emt 0:00:24]} 23. b5 {[%emt 0:01:33]} Kd8 {[%emt 0:00:43]} 24. Rec1 {[%emt 0:00:54]} Ke8 {[%emt 0:02:52]} 25. Rc3 {[%emt 0:00:49]} Be4 {[%emt 0:02:11]} 26. a5 {[%emt 0:04:09]} Bd3 {[%emt 0:00:44]} 27. a6 {[%emt 0:00:53]} bxa6 {[%emt 0:00:37]} 28. bxa6 {[%emt 0:00:40]} Be4 {[%emt 0:00:34]} 29. a7 {[%emt 0:01:08]} Ba8 {[%emt 0:00:30]} 30. Bb6 {[%emt 0:00:38]} Rf8 {[%emt 0:00:35]} 31. f4 {[%emt 0:03:47]} e4 {[%emt 0:01:05]} 32. Rc8+ {[%emt 0:02:00]} Kf7 {[%emt 0:00:25]} 33. Rxf8+ {[%emt 0:00:29]} Kxf8 {[%emt 0:00:22]} 34. Rc1 {[%emt 0:00:22]} Bb7 {[%emt 0:01:08]} 35. a8=Q+ {[%emt 0:01:04]} Bxa8 {[%emt 0:00:24]} 36. Rc8+ {[%emt 0:00:23]} Kf7 {[%emt 0:00:22]} 37. Rxa8 {[%emt 0:00:22]} f5 {[%emt 0:00:33]} 38. Ra7 {[%emt 0:00:33]} Rxa7 {[%emt 0:00:36]} 39. Bxa7 {[%emt 0:00:23]} Ke6 {[%emt 0:00:22]} 40. Bd4 {[%emt 0:00:25]} g6 {[%emt 0:00:23]} 41. Kf2 {[%emt 0:00:25]} Kd5 {[%emt 0:00:23]} 42. Ke3 {[%emt 0:00:24]} Kc4 {[%emt 0:00:21]} 43. Ba7 {[%emt 0:00:30]} Kc3 {[%emt 0:00:23]} 44. Bb8 {[%emt 0:00:37]} Kc2 {[%emt 0:00:22]} 45. Ba7 {[%emt 0:00:41]} Kd1 {[%emt 0:00:23]} 46. g4 {[%emt 0:00:31]} Ke1 {[%emt 0:00:41]} 47. gxf5 {[%emt 0:00:28]} gxf5 {[%emt 0:00:22]} 48. Kd4 {[%emt 0:00:22]} Kf2 {[%emt 0:00:24]} 49. Ke5+ {[%emt 0:00:24]} Kg2 {[%emt 0:00:21]} 50. Kxf5 {[%emt 0:00:33]} Kxh2 {[%emt 0:00:28]} 51. Kxe4 {[%emt 0:00:24]} Kg3 {[%emt 0:00:22]} 52. f5 {[%emt 0:00:21]} h5 {[%emt 0:00:22]} 53. f6 {[%emt 0:00:23]} 1-0

[Event "Balkan Youth Online-ch 2020"]
[Site "Online"]
[Date "2020.10.31"]
[Round "1.14"]
[White "Cvetkovski, Gjorgji"]
[Black "Magold, Filip"]
[Result "0-1"]
[ECO "B51"]
[WhiteElo "1332"]
[BlackElo "2043"]
[Annotator "RC"]
[PlyCount "58"]
[EventDate "2020.10.31"]
[EventType "swiss"]
[SourceTitle "playchess.com"]
[Source "ChessBase"]
[SourceQuality "1"]
[TimeControl "5400+30"]

1. e4 {[%emt 1:05:20]} c5 {[%emt 1:05:23]} 2. Nf3 {[%emt 0:00:45]} d6 {[%emt 0:00:23]} 3. Bb5+ {[%emt 0:00:25]} Nd7 {[%emt 0:00:24]} 4. Bxd7+ {[%emt 0:00:27]} Bxd7 {[%emt 0:00:22]} 5. O-O {[%emt 0:00:23]} Nf6 {[%emt 0:00:22]} 6. Nc3 {[%emt 0:00:33]} g6 {[%emt 0:00:25]} 7. Re1 {[%emt 0:00:35]} Bg7 {[%emt 0:00:22]} 8. h3 {[%emt 0:01:18]} O-O {[%emt 0:00:26]} 9. d4 {[%emt 0:01:37]} cxd4 {[%emt 0:00:26]} 10. Nxd4 {[%emt 0:00:25]} a6 {[%emt 0:00:26]} 11. b3 {[%emt 0:01:45]} Rc8 {[%emt 0:00:29]} 12. Bb2 {[%emt 0:00:42]} b5 {[%emt 0:00:23]} 13. a3 {[%emt 0:01:26]} Qc7 {[%emt 0:00:38]} 14. Rb1 {[%emt 0:01:22]} e5 {[%emt 0:01:02]} 15. Nf3 {[%emt 0:00:43]} Bc6 {[%emt 0:00:24]} 16. Qe2 {[%emt 0:01:20]} Rfd8 {[%emt 0:00:27]} 17. Rbd1 {[%emt 0:00:34]} Nh5 {[%emt 0:00:39]} 18. g3 {[%emt 0:01:27]} Nf6 {[%emt 0:00:26]} 19. Rd2 {[%emt 0:03:46]} Qb7 {[%emt 0:00:33]} 20. b4 {[%emt 0:03:02]} Qe7 {[%emt 0:01:47]} 21. Red1 {[%emt 0:02:57]} Bb7 {[%emt 0:00:58]} 22. Kh2 {[%emt 0:02:42]} Rc4 {[%emt 0:00:28]} 23. Nd5 {[%emt 0:01:10]} Nxd5 {[%emt 0:00:32]} 24. exd5 {[%emt 0:00:28]} Rdc8 {[%emt 0:00:24]} 25. Nh4 {[%emt 0:02:25]} Bh6 {[%emt 0:00:31]} 26. Rd3 {[%emt 0:00:44]} Rxc2 {[%emt 0:00:23]} 27. Qf3 {[%emt 0:01:02]} Rxb2 {[%emt 0:00:25]} 28. Re1 {[%emt 0:00:42]} Rcc2 {[%emt 0:00:25]} 29. Rf1 {[%emt 0:00:32]} e4 {[%emt 0:00:21]} 0-1

[Event "Balkan Youth Online-ch 2020"]
[Site "Online"]
[Date "2020.10.31"]
[Round "1.16"]
[White "Tsarsitalidis, Christos"]
[Black "Boeru, Dragos-Matei"]
[Result "1-0"]
[ECO "B28"]
[WhiteElo "1786"]
[BlackElo "1756"]
[Annotator "NA RC"]
[PlyCount "125"]
[EventDate "2020.10.31"]
[EventType "swiss"]
[SourceTitle "playchess.com"]
[Source "ChessBase"]
[SourceQuality "1"]
[TimeControl "5400+30"]

1. e4 {[%emt 1:05:20]} c5 {[%emt 1:05:33]} 2. Nf3 {[%emt 0:00:23]} e6 {[%emt 0:00:22]} 3. c3 {[%emt 0:00:21]} a6 {[%emt 0:00:22]} 4. d4 {[%emt 0:00:50]} cxd4 {[%emt 0:00:23]} 5. cxd4 {[%emt 0:00:22]} b5 {[%emt 0:00:25]} 6. Bf4 {[%emt 0:00:43]} Bb7 {[%emt 0:00:31]} 7. Bd3 {[%emt 0:00:40]} Nf6 {[%emt 0:00:31]} 8. Qe2 {[%emt 0:00:48]} Be7 {[%emt 0:00:43]} 9. O-O {[%emt 0:00:29]} O-O {[%emt 0:00:23]} 10. Nbd2 {[%emt 0:00:24]} Nc6 {[%emt 0:00:24]} 11. Rac1 {[%emt 0:01:19]} Rc8 {[%emt 0:00:44]} 12. Bg5 {[%emt 0:01:07]} d5 {[%emt 0:01:03]} 13. Bxf6 {[%emt 0:00:48]} Bxf6 {[%emt 0:00:22]} 14. e5 {[%emt 0:00:23]} Bg5 {[%emt 0:01:39]} 15. Nxg5 {[%emt 0:01:05]} Qxg5 {[%emt 0:00:23]} 16. f4 {[%emt 0:00:30]} Qe7 {[%emt 0:00:30]} 17. Nf3 {[%emt 0:00:25]} h6 {[%emt 0:00:23]} 18. Qf2 {[%emt 0:02:42]} Nb4 {[%emt 0:00:59]} 19. Bb1 {[%emt 0:00:24]} Rxc1 {[%emt 0:01:13]} 20. Rxc1 {[%emt 0:00:23]} Rc8 {[%emt 0:00:27]} 21. Rxc8+ {[%emt 0:00:22]} Bxc8 {[%emt 0:00:23]} 22. a3 {[%emt 0:00:21]} Nc6 {[%emt 0:00:59]} 23. Qc2 {[%emt 0:00:23]} Qc7 {[%emt 0:00:40]} 24. Qh7+ {[%emt 0:00:57]} Kf8 {[%emt 0:00:23]} 25. Qh8+ {[%emt 0:00:29]} Ke7 {[%emt 0:00:25]} 26. Qxg7 {[%emt 0:00:28]} Nxd4 {[%emt 0:02:31]} 27. Nxd4 {[%emt 0:04:50]} Qc5 {[%emt 0:03:12]} 28. f5 {[%emt 0:05:20]} Qxd4+ {[%emt 0:00:30]} 29. Kf1 {[%emt 0:00:23]} Qf4+ {[%emt 0:03:24]} 30. Ke2 {[%emt 0:00:31]} exf5 {[%emt 0:00:52]} 31. Qf6+ {[%emt 0:01:18]} Ke8 {[%emt 0:00:38]} 32. Qc6+ {[%emt 0:00:25]} Bd7 {[%emt 0:00:30]} 33. Qa8+ {[%emt 0:02:35]} Ke7 {[%emt 0:00:26]} 34. Qxd5 {[%emt 0:00:24]} Qc4+ {[%emt 0:02:34]} 35. Qxc4 {[%emt 0:00:23]} bxc4 {[%emt 0:00:22]} 36. Ke3 {[%emt 0:00:40]} f6 {[%emt 0:01:11]} 37. Kd4 {[%emt 0:01:10]} Be6 {[%emt 0:00:30]} 38. exf6+ {[%emt 0:02:31]} Kxf6 {[%emt 0:00:24]} 39. Kc3 {[%emt 0:00:22]} Bd5 {[%emt 0:00:35]} 40. g3 {[%emt 0:00:25]} Kg5 {[%emt 0:00:24]} 41. Ba2 {[%emt 0:00:26]} Kg4 {[%emt 0:00:42]} 42. Bxc4 {[%emt 0:00:34]} Bxc4 {[%emt 0:00:22]} 43. Kxc4 {[%emt 0:00:21]} Kh3 {[%emt 0:00:21]} 44. b4 {[%emt 0:00:21]} Kxh2 {[%emt 0:00:22]} 45. a4 {[%emt 0:00:30]} Kxg3 {[%emt 0:00:23]} 46. b5 {[%emt 0:00:21]} axb5+ {[%emt 0:00:42]} 47. axb5 {[%emt 0:00:22]} f4 {[%emt 0:00:29]} 48. b6 {[%emt 0:00:21]} f3 {[%emt 0:00:21]} 49. b7 {[%emt 0:00:21]} f2 {[%emt 0:00:23]} 50. b8=Q+ {[%emt 0:00:22]} Kg2 {[%emt 0:00:22]} 51. Qg8+ {[%emt 0:00:22]} Kh2 {[%emt 0:00:22]} 52. Qf8 {[%emt 0:00:35]} Kg2 {[%emt 0:00:26]} 53. Qg7+ {[%emt 0:00:22]} Kf3 {[%emt 0:00:26]} 54. Qf6+ {[%emt 0:00:27]} Kg2 {[%emt 0:00:39]} 55. Qg6+ {[%emt 0:00:23]} Kh2 {[%emt 0:00:45]} 56. Qh5+ {[%emt 0:01:06]} Kg3 {[%emt 0:00:35]} 57. Qh1 {[%emt 0:00:55]} h5 {[%emt 0:00:28]} 58. Kd3 {[%emt 0:00:21]} h4 {[%emt 0:00:21]} 59. Ke2 {[%emt 0:00:27]} h3 {[%emt 0:00:26]} 60. Qf3+ {[%emt 0:00:33]} Kh2 {[%emt 0:00:22]} 61. Qxf2+ {[%emt 0:00:22]} Kh1 {[%emt 0:00:21]} 62. Kf1 {[%emt 0:00:25]} h2 {[%emt 0:00:22]} 63. Qg2# {[%emt 0:00:21]} 1-0

[Event "Balkan Youth Online-ch 2020"]
[Site "Online"]
[Date "2020.10.31"]
[Round "1.18"]
[White "Pehlivan, Mert"]
[Black "Kalin, Andrei"]
[Result "1-0"]
[ECO "B53"]
[WhiteElo "1653"]
[BlackElo "1426"]
[Annotator "NA RC"]
[PlyCount "33"]
[EventDate "2020.10.31"]
[EventType "swiss"]
[SourceTitle "playchess.com"]
[Source "ChessBase"]
[SourceQuality "1"]
[TimeControl "5400+30"]

1. e4 {[%emt 1:05:20]} c5 {[%emt 1:05:22]} 2. Nf3 {[%emt 0:00:24]} d6 {[%emt 0:00:22]} 3. d4 {[%emt 0:00:22]} cxd4 {[%emt 0:00:21]} 4. Qxd4 {[%emt 0:00:22]} Nc6 {[%emt 0:00:27]} 5. Bb5 {[%emt 0:00:23]} Bd7 {[%emt 0:00:23]} 6. Bxc6 {[%emt 0:00:22]} bxc6 {[%emt 0:00:23]} 7. c4 {[%emt 0:00:23]} Nf6 {[%emt 0:00:25]} 8. Nc3 {[%emt 0:00:23]} e5 {[%emt 0:01:07]} 9. Qd3 {[%emt 0:00:25]} Be7 {[%emt 0:00:23]} 10. Bg5 {[%emt 0:00:35]} Nh5 {[%emt 0:01:57]} 11. Bxe7 {[%emt 0:01:32]} Qxe7 {[%emt 0:00:23]} 12. O-O-O {[%emt 0:00:37]} d5 {[%emt 0:01:36]} 13. exd5 {[%emt 0:01:33]} Nf4 {[%emt 0:01:30]} 14. Qd2 {[%emt 0:03:44]} cxd5 {[%emt 0:01:40]} 15. Nxd5 {[%emt 0:01:31]} Nxd5 {[%emt 0:00:27]} 16. Qxd5 {[%emt 0:00:38]} Bg4 {[%emt 0:00:54]} 17. Qxa8+ {[%emt 0:00:35]} 1-0

[Event "Balkan Youth Online-ch 2020"]
[Site "Online"]
[Date "2020.10.31"]
[Round "1.22"]
[White "Cimperman, Teo"]
[Black "Dragicevic, Niksa"]
[Result "1-0"]
[ECO "C50"]
[WhiteElo "1488"]
[BlackElo "1068"]
[Annotator "NA RC"]
[PlyCount "111"]
[EventDate "2020.10.31"]
[EventType "swiss"]
[SourceTitle "playchess.com"]
[Source "ChessBase"]
[SourceQuality "1"]
[TimeControl "5400+30"]

1. e4 {[%emt 1:05:20]} e5 {[%emt 1:05:23]} 2. Nf3 {[%emt 0:00:22]} Nc6 {[%emt 0:00:22]} 3. Bc4 {[%emt 0:00:28]} Bc5 {[%emt 0:00:24]} 4. Nc3 {[%emt 0:00:29]} Nf6 {[%emt 0:00:24]} 5. d3 {[%emt 0:00:34]} h6 {[%emt 0:00:25]} 6. Be3 {[%emt 0:00:22]} Bb6 {[%emt 0:00:30]} 7. O-O {[%emt 0:00:23]} O-O {[%emt 0:00:26]} 8. h3 {[%emt 0:00:24]} d6 {[%emt 0:00:25]} 9. Qd2 {[%emt 0:00:23]} Be6 {[%emt 0:00:36]} 10. Bb3 {[%emt 0:00:31]} Ba5 {[%emt 0:01:41]} 11. Rfe1 {[%emt 0:00:43]} Bxb3 {[%emt 0:01:18]} 12. axb3 {[%emt 0:00:25]} Bb6 {[%emt 0:00:27]} 13. d4 {[%emt 0:00:42]} Qe7 {[%emt 0:02:11]} 14. d5 {[%emt 0:01:05]} Bxe3 {[%emt 0:00:39]} 15. Rxe3 {[%emt 0:00:29]} Nb4 {[%emt 0:01:06]} 16. Ne2 {[%emt 0:00:44]} Na6 {[%emt 0:00:36]} 17. Ng3 {[%emt 0:00:24]} g6 {[%emt 0:01:17]} 18. Ree1 {[%emt 0:00:41]} Kh7 {[%emt 0:01:37]} 19. Nh4 {[%emt 0:00:39]} Ng8 {[%emt 0:03:54]} 20. Nf3 {[%emt 0:00:38]} Nf6 {[%emt 0:01:11]} 21. b4 {[%emt 0:01:21]} Rac8 {[%emt 0:01:37]} 22. b5 {[%emt 0:00:23]} Nc5 {[%emt 0:00:24]} 23. b4 {[%emt 0:00:23]} Ncd7 {[%emt 0:00:24]} 24. c4 {[%emt 0:00:23]} Ra8 {[%emt 0:00:43]} 25. Qc2 {[%emt 0:00:35]} Rfc8 {[%emt 0:02:05]} 26. Rec1 {[%emt 0:00:30]} c6 {[%emt 0:01:08]} 27. bxc6 {[%emt 0:00:38]} bxc6 {[%emt 0:00:24]} 28. Qd3 {[%emt 0:00:23]} cxd5 {[%emt 0:00:43]} 29. cxd5 {[%emt 0:00:26]} Nb6 {[%emt 0:00:51]} 30. b5 {[%emt 0:00:45]} Rc7 {[%emt 0:01:16]} 31. Rc6 {[%emt 0:00:31]} Rac8 {[%emt 0:01:23]} 32. Rac1 {[%emt 0:00:31]} Na4 {[%emt 0:01:21]} 33. Rxc7 {[%emt 0:00:43]} Rxc7 {[%emt 0:00:26]} 34. Rc6 {[%emt 0:00:25]} Nc5 {[%emt 0:00:33]} 35. Qc2 {[%emt 0:00:26]} Rxc6 {[%emt 0:01:17]} 36. bxc6 {[%emt 0:00:31]} Qc7 {[%emt 0:00:29]} 37. Qb2 {[%emt 0:00:58]} Ne8 {[%emt 0:01:26]} 38. Nd2 {[%emt 0:01:00]} Qb6 {[%emt 0:00:46]} 39. Qxb6 {[%emt 0:02:37]} axb6 {[%emt 0:00:25]} 40. Ne2 {[%emt 0:00:23]} Nc7 {[%emt 0:00:39]} 41. Nc4 {[%emt 0:01:11]} b5 {[%emt 0:01:02]} 42. Nxd6 {[%emt 0:00:33]} b4 {[%emt 0:00:36]} 43. Nc4 {[%emt 0:00:23]} Nxe4 {[%emt 0:00:37]} 44. d6 {[%emt 0:00:29]} Ne6 {[%emt 0:00:23]} 45. c7 {[%emt 0:00:43]} Nxd6 {[%emt 0:00:31]} 46. Nxd6 {[%emt 0:00:34]} Nxc7 {[%emt 0:00:24]} 47. Nxf7 {[%emt 0:00:24]} Nd5 {[%emt 0:00:22]} 48. Nxe5 {[%emt 0:00:23]} b3 {[%emt 0:00:22]} 49. Nc4 {[%emt 0:00:26]} g5 {[%emt 0:00:28]} 50. Nd4 {[%emt 0:00:24]} Nb6 {[%emt 0:00:38]} 51. Nb2 {[%emt 0:00:31]} Kg6 {[%emt 0:00:26]} 52. Nxb3 {[%emt 0:00:23]} Nd5 {[%emt 0:00:23]} 53. Nd3 {[%emt 0:00:31]} Nc3 {[%emt 0:00:22]} 54. f3 {[%emt 0:00:30]} Ne2+ {[%emt 0:00:22]} 55. Kf2 {[%emt 0:00:23]} Nd4 {[%emt 0:00:24]} 56. Nxd4 {[%emt 0:00:23]} 1-0